[Event "Late-Titled-Tuesday-Blitz-September-05-2023"]
[Site "Chess.com"]
[Date "2023.09.05"]
[Round "3"]
[White "tgpgoat"]
[Black "MikeSailer"]
[Result "1-0"]
[WhiteElo "2511"]
[BlackElo "2178"]
[TimeControl "180+1"]
[EndTime "14:28:43 PDT"]
[Termination "tgpgoat won on time"]

1. Nf3 {[%clk 0:03:00.9]} 1... e6 {[%clk 0:02:58.2]} 2. e3 {[%clk 0:02:59.7]}
2... f5 {[%clk 0:02:55.6]} 3. c4 {[%clk 0:03:00.1]} 3... Nf6 {[%clk 0:02:56.4]}
4. Be2 {[%clk 0:02:48.8]} 4... Be7 {[%clk 0:02:55.6]} 5. d4 {[%clk 0:02:40.1]}
5... b6 {[%clk 0:02:55]} 6. O-O {[%clk 0:02:28.5]} 6... Bb7 {[%clk 0:02:54.5]}
7. Nc3 {[%clk 0:02:29.4]} 7... O-O {[%clk 0:02:53.8]} 8. b3 {[%clk 0:02:30]}
8... Ne4 {[%clk 0:02:40.4]} 9. Bb2 {[%clk 0:02:27.3]} 9... d6 {[%clk 0:02:34]}
10. d5 {[%clk 0:02:24]} 10... Nxc3 {[%clk 0:02:27.2]} 11. Bxc3 {[%clk
0:02:24.9]} 11... e5 {[%clk 0:02:22.8]} 12. b4 {[%clk 0:02:21.2]} 12... Nd7
{[%clk 0:02:20]} 13. a4 {[%clk 0:02:12.6]} 13... a5 {[%clk 0:02:10.3]} 14. Nd2
{[%clk 0:02:11.1]} 14... axb4 {[%clk 0:02:06.7]} 15. Bxb4 {[%clk 0:02:12]} 15...
e4 {[%clk 0:01:37.3]} 16. Nb3 {[%clk 0:02:06.9]} 16... Bf6 {[%clk 0:01:31.3]}
17. Ra2 {[%clk 0:02:05.4]} 17... Be5 {[%clk 0:01:19.1]} 18. Nd4 {[%clk
0:02:03.8]} 18... Rf6 {[%clk 0:01:03.2]} 19. g3 {[%clk 0:01:54]} 19... Nc5
{[%clk 0:00:47.6]} 20. a5 {[%clk 0:01:39.5]} 20... g6 {[%clk 0:00:39.1]} 21.
Bxc5 {[%clk 0:01:36.3]} 21... bxc5 {[%clk 0:00:33]} 22. Ne6 {[%clk 0:01:36.5]}
22... Qe7 {[%clk 0:00:28.6]} 23. a6 {[%clk 0:01:27.7]} 23... Rxa6 {[%clk
0:00:21.4]} 24. Rxa6 {[%clk 0:01:23.5]} 24... Bxa6 {[%clk 0:00:22]} 25. Qa4
{[%clk 0:01:23.7]} 25... Rxe6 {[%clk 0:00:15.6]} 26. dxe6 {[%clk 0:01:21.8]}
26... Bc8 {[%clk 0:00:14.8]} 27. Qa8 {[%clk 0:01:18.7]} 27... Qxe6 {[%clk
0:00:15.7]} 28. Rb1 {[%clk 0:01:17.8]} 28... Kg7 {[%clk 0:00:13]} 29. Rb8 {[%clk
0:01:16.9]} 29... Bd7 {[%clk 0:00:11.7]} 30. Qb7 {[%clk 0:01:16.6]} 30... d5
{[%clk 0:00:07.5]} 31. cxd5 {[%clk 0:01:15.7]} 31... Qf6 {[%clk 0:00:06.8]} 32.
Bb5 {[%clk 0:01:09]} 32... Bxb5 {[%clk 0:00:06.2]} 33. Qxb5 {[%clk 0:01:09.9]}
33... Bd6 {[%clk 0:00:07.1]} 34. Qd7+ {[%clk 0:01:09.4]} 34... Kh6 {[%clk
0:00:07.8]} 35. Re8 {[%clk 0:01:05.9]} 35... Kg5 {[%clk 0:00:04.6]} 36. Qd8
{[%clk 0:01:05.3]} 36... Qxd8 {[%clk 0:00:04.8]} 37. Rxd8 {[%clk 0:01:06.2]}
37... Kg4 {[%clk 0:00:04]} 38. Kg2 {[%clk 0:01:03.3]} 38... Kg5 {[%clk 0:00:04]}
39. Ra8 {[%clk 0:01:02.6]} 39... h5 {[%clk 0:00:03.5]} 40. Ra4 {[%clk
0:00:58.3]} 40... Kf6 {[%clk 0:00:04.2]} 41. f3 {[%clk 0:00:58.3]} 41... exf3+
{[%clk 0:00:02.8]} 42. Kxf3 {[%clk 0:00:59.2]} 42... Ke5 {[%clk 0:00:03.7]} 43.
e4 {[%clk 0:00:58.4]} 43... fxe4+ {[%clk 0:00:02.8]} 44. Rxe4+ {[%clk
0:00:59.3]} 44... Kxd5 {[%clk 0:00:03.7]} 45. Re2 {[%clk 0:00:59.3]} 45... c4
{[%clk 0:00:02.8]} 46. Ke3 {[%clk 0:00:59.9]} 46... Bc5+ {[%clk 0:00:01.4]} 47.
Kd2 {[%clk 0:01:00.1]} 47... Bd4 {[%clk 0:00:00.8]} 48. Re7 {[%clk 0:00:59.9]}
1-0

[Event "Late-Titled-Tuesday-Blitz-September-05-2023"]
[Site "Chess.com"]
[Date "2023.09.05"]
[Round "3"]
[White "eljanov"]
[Black "Marcin"]
[Result "1-0"]
[WhiteElo "2882"]
[BlackElo "2487"]
[TimeControl "180+1"]
[EndTime "14:28:47 PDT"]
[Termination "eljanov won by resignation"]

1. d4 {[%clk 0:02:54.7]} 1... Nf6 {[%clk 0:02:58.5]} 2. c4 {[%clk 0:02:54.7]}
2... g6 {[%clk 0:02:58.9]} 3. Nc3 {[%clk 0:02:54.4]} 3... Bg7 {[%clk 0:02:59.5]}
4. e4 {[%clk 0:02:54.4]} 4... d6 {[%clk 0:03:00.1]} 5. Be2 {[%clk 0:02:53.8]}
5... O-O {[%clk 0:03:00.1]} 6. Be3 {[%clk 0:02:54.5]} 6... e5 {[%clk 0:02:56.9]}
7. d5 {[%clk 0:02:54.2]} 7... a5 {[%clk 0:02:56.3]} 8. Nf3 {[%clk 0:02:44.9]}
8... Ng4 {[%clk 0:02:50.6]} 9. Bg5 {[%clk 0:02:44.9]} 9... f6 {[%clk 0:02:50.3]}
10. Bh4 {[%clk 0:02:39.9]} 10... Qe8 {[%clk 0:02:48.7]} 11. Nd2 {[%clk
0:02:28.4]} 11... Nh6 {[%clk 0:02:44.8]} 12. f3 {[%clk 0:02:24.1]} 12... Na6
{[%clk 0:02:42.3]} 13. Bf2 {[%clk 0:02:16.8]} 13... f5 {[%clk 0:02:41.8]} 14. a3
{[%clk 0:02:11.4]} 14... Bd7 {[%clk 0:02:36.9]} 15. b3 {[%clk 0:02:00.9]} 15...
Kh8 {[%clk 0:02:36.6]} 16. O-O {[%clk 0:02:00.7]} 16... f4 {[%clk 0:02:36.3]}
17. Rb1 {[%clk 0:01:56]} 17... g5 {[%clk 0:02:34.8]} 18. b4 {[%clk 0:01:56.5]}
18... axb4 {[%clk 0:02:27.7]} 19. axb4 {[%clk 0:01:57.4]} 19... Rg8 {[%clk
0:02:27]} 20. c5 {[%clk 0:01:55.4]} 20... Bf8 {[%clk 0:02:23.1]} 21. h3 {[%clk
0:01:31.1]} 21... Qh5 {[%clk 0:02:05.2]} 22. Re1 {[%clk 0:01:31.2]} 22... Bxh3
{[%clk 0:01:59.7]} 23. gxh3 {[%clk 0:01:31.1]} 23... Qxh3 {[%clk 0:02:00.6]} 24.
Bf1 {[%clk 0:01:25.6]} 24... Qh5 {[%clk 0:01:59.8]} 25. Bg2 {[%clk 0:01:13]}
25... Be7 {[%clk 0:01:49]} 26. Kf1 {[%clk 0:01:10.8]} 26... g4 {[%clk
0:01:48.8]} 27. Ke2 {[%clk 0:01:07]} 27... g3 {[%clk 0:01:47.1]} 28. Bg1 {[%clk
0:01:06.1]} 28... dxc5 {[%clk 0:01:46.2]} 29. bxc5 {[%clk 0:00:47.8]} 29... Bxc5
{[%clk 0:01:45.4]} 30. Bxc5 {[%clk 0:00:47]} 30... Nxc5 {[%clk 0:01:46.3]} 31.
Rh1 {[%clk 0:00:47.2]} 31... Qg6 {[%clk 0:01:46.3]} 32. Nc4 {[%clk 0:00:36.9]}
32... Qa6 {[%clk 0:01:28.7]} 33. Rb5 {[%clk 0:00:34.6]} 33... Nd7 {[%clk
0:01:12.3]} 34. Qb3 {[%clk 0:00:30.4]} 34... Qa7 {[%clk 0:01:11.8]} 35. Nd1
{[%clk 0:00:26.7]} 35... Nc5 {[%clk 0:00:50.7]} 36. Qc3 {[%clk 0:00:22.2]} 36...
Nf7 {[%clk 0:00:41.8]} 37. Nxe5 {[%clk 0:00:22.5]} 37... Qa2+ {[%clk 0:00:35.9]}
38. Rb2 {[%clk 0:00:20.7]} 38... Qa6+ {[%clk 0:00:35.8]} 39. Ke1 {[%clk
0:00:18.6]} 39... Rg7 {[%clk 0:00:30.5]} 40. Nxf7+ {[%clk 0:00:17.1]} 40... Kg8
{[%clk 0:00:31]} 41. Nh6+ {[%clk 0:00:16.2]} 41... Kf8 {[%clk 0:00:27.7]} 42.
Nf5 {[%clk 0:00:16.3]} 42... Nd3+ {[%clk 0:00:25]} 43. Kd2 {[%clk 0:00:16.7]}
1-0

[Event "Late-Titled-Tuesday-Blitz-September-05-2023"]
[Site "Chess.com"]
[Date "2023.09.05"]
[Round "3"]
[White "Giorno"]
[Black "OYAcosta"]
[Result "1-0"]
[WhiteElo "2451"]
[BlackElo "2261"]
[TimeControl "180+1"]
[EndTime "14:28:47 PDT"]
[Termination "Giorno won on time"]

1. d4 {[%clk 0:03:00.9]} 1... c6 {[%clk 0:03:00.9]} 2. e4 {[%clk 0:02:57.9]}
2... d5 {[%clk 0:03:01.8]} 3. e5 {[%clk 0:02:52.5]} 3... Bf5 {[%clk 0:02:59.1]}
4. h4 {[%clk 0:02:45.6]} 4... h5 {[%clk 0:02:58.9]} 5. Bd3 {[%clk 0:02:38.7]}
5... Bxd3 {[%clk 0:02:57]} 6. cxd3 {[%clk 0:02:38.1]} 6... e6 {[%clk 0:02:57.5]}
7. Nf3 {[%clk 0:02:35.4]} 7... Nd7 {[%clk 0:02:56.1]} 8. Nc3 {[%clk 0:02:33.5]}
8... Ne7 {[%clk 0:02:55.7]} 9. Bg5 {[%clk 0:02:25.3]} 9... Qb6 {[%clk
0:02:55.7]} 10. Bxe7 {[%clk 0:02:16.6]} 10... Bxe7 {[%clk 0:02:55.8]} 11. Qd2
{[%clk 0:02:13.3]} 11... c5 {[%clk 0:02:54.1]} 12. Na4 {[%clk 0:02:09.8]} 12...
Qb5 {[%clk 0:02:53.4]} 13. Nxc5 {[%clk 0:02:08.9]} 13... Nxc5 {[%clk 0:02:53.3]}
14. dxc5 {[%clk 0:02:08.6]} 14... Bxc5 {[%clk 0:02:53.1]} 15. O-O {[%clk
0:02:04.6]} 15... O-O {[%clk 0:02:29.5]} 16. d4 {[%clk 0:02:00.7]} 16... Bb4
{[%clk 0:02:29.6]} 17. Qg5 {[%clk 0:01:54.9]} 17... g6 {[%clk 0:02:25.5]} 18. g4
{[%clk 0:01:52.8]} 18... hxg4 {[%clk 0:02:22.5]} 19. Nh2 {[%clk 0:01:47.7]}
19... Rfe8 {[%clk 0:02:00]} 20. Nxg4 {[%clk 0:01:44.4]} 20... Be7 {[%clk
0:01:59.9]} 21. Nf6+ {[%clk 0:01:41.7]} 21... Kg7 {[%clk 0:01:54.6]} 22. Rac1
{[%clk 0:01:20.9]} 22... Qb6 {[%clk 0:01:41.4]} 23. h5 {[%clk 0:01:11.6]} 23...
Rh8 {[%clk 0:01:38.2]} 24. hxg6 {[%clk 0:01:06.7]} 24... fxg6 {[%clk 0:01:33.8]}
25. Nh5+ {[%clk 0:00:49.6]} 25... Rxh5 {[%clk 0:01:16.2]} 26. Qxe7+ {[%clk
0:00:48.9]} 26... Kh6 {[%clk 0:01:16.6]} 27. Rc7 {[%clk 0:00:47.3]} 27... Rg5+
{[%clk 0:01:11.7]} 28. Kh1 {[%clk 0:00:39.7]} 28... Rh5+ {[%clk 0:01:12]} 29.
Kg2 {[%clk 0:00:39.2]} 29... Rg5+ {[%clk 0:01:12.1]} 30. Kf3 {[%clk 0:00:35]}
30... Rf5+ {[%clk 0:01:05.6]} 31. Ke3 {[%clk 0:00:34.6]} 31... Rxe5+ {[%clk
0:00:54.6]} 32. Kd2 {[%clk 0:00:26.1]} 32... Qxd4+ {[%clk 0:00:54]} 33. Kc1
{[%clk 0:00:25.8]} 33... Qf4+ {[%clk 0:00:36.3]} 34. Kb1 {[%clk 0:00:25]} 34...
Qe4+ {[%clk 0:00:36.3]} 35. Ka1 {[%clk 0:00:20.7]} 35... g5 {[%clk 0:00:01.2]}
36. Qg7+ {[%clk 0:00:17.9]} 36... Kh5 {[%clk 0:00:01.6]} 37. a3 {[%clk
0:00:17.5]} 1-0

[Event "Late-Titled-Tuesday-Blitz-September-05-2023"]
[Site "Chess.com"]
[Date "2023.09.05"]
[Round "3"]
[White "Verony64"]
[Black "Bilan_Danila"]
[Result "0-1"]
[WhiteElo "2269"]
[BlackElo "2522"]
[TimeControl "180+1"]
[EndTime "14:28:53 PDT"]
[Termination "Bilan_Danila won on time"]

1. e4 {[%clk 0:03:00.9]} 1... c6 {[%clk 0:03:00]} 2. Nc3 {[%clk 0:03:00]} 2...
d5 {[%clk 0:03:00.9]} 3. e5 {[%clk 0:03:00]} 3... Bf5 {[%clk 0:02:59]} 4. f4
{[%clk 0:02:59.8]} 4... e6 {[%clk 0:02:58.7]} 5. d3 {[%clk 0:02:59.3]} 5... Nd7
{[%clk 0:02:51.7]} 6. g3 {[%clk 0:02:49.4]} 6... Bc5 {[%clk 0:02:36.1]} 7. Nf3
{[%clk 0:02:43.6]} 7... h5 {[%clk 0:02:14]} 8. h3 {[%clk 0:02:41.6]} 8... Qb6
{[%clk 0:02:07.4]} 9. d4 {[%clk 0:02:26.9]} 9... Bb4 {[%clk 0:01:56.5]} 10. Bg2
{[%clk 0:02:24.3]} 10... c5 {[%clk 0:01:44.9]} 11. Be3 {[%clk 0:02:17.3]} 11...
Ne7 {[%clk 0:01:36.6]} 12. O-O {[%clk 0:02:09.8]} 12... Bxc3 {[%clk 0:01:30.3]}
13. bxc3 {[%clk 0:02:09.2]} 13... Be4 {[%clk 0:01:27.8]} 14. Rb1 {[%clk
0:02:03.7]} 14... Qc7 {[%clk 0:01:18.6]} 15. Nh4 {[%clk 0:01:55.7]} 15... Bxg2
{[%clk 0:01:12.2]} 16. Kxg2 {[%clk 0:01:55.5]} 16... g6 {[%clk 0:01:02.3]} 17.
Qd3 {[%clk 0:01:40.3]} 17... cxd4 {[%clk 0:00:52.5]} 18. cxd4 {[%clk 0:01:33.1]}
18... Rc8 {[%clk 0:00:46.6]} 19. Rf2 {[%clk 0:01:31.1]} 19... Nb6 {[%clk
0:00:46.6]} 20. Qb5+ {[%clk 0:01:21]} 20... Qc6 {[%clk 0:00:44.5]} 21. Qxc6+
{[%clk 0:00:47.1]} 21... Rxc6 {[%clk 0:00:45.4]} 22. Bc1 {[%clk 0:00:43.5]}
22... Kd7 {[%clk 0:00:36.8]} 23. Ba3 {[%clk 0:00:36.1]} 23... Rhc8 {[%clk
0:00:18.2]} 24. Bc5 {[%clk 0:00:35]} 24... R8c7 {[%clk 0:00:17.1]} 25. Rf3
{[%clk 0:00:17.8]} 25... Na4 {[%clk 0:00:07.3]} 26. Rfb3 {[%clk 0:00:11.9]}
26... b6 {[%clk 0:00:05.3]} 27. Bd6 {[%clk 0:00:06.1]} 27... Rxc2+ {[%clk
0:00:05.2]} 28. Kf1 {[%clk 0:00:06.2]} 28... R7c3 {[%clk 0:00:05.7]} 29. Rxc3
{[%clk 0:00:06.2]} 29... Nxc3 {[%clk 0:00:04.3]} 30. Rb3 {[%clk 0:00:04.6]}
30... Nc8 {[%clk 0:00:04.3]} 31. Nf3 {[%clk 0:00:01]} 31... Ne4 {[%clk
0:00:04.8]} 0-1

[Event "Late-Titled-Tuesday-Blitz-September-05-2023"]
[Site "Chess.com"]
[Date "2023.09.05"]
[Round "3"]
[White "allvim"]
[Black "boguszp"]
[Result "0-1"]
[WhiteElo "2308"]
[BlackElo "2097"]
[TimeControl "180+1"]
[EndTime "14:28:53 PDT"]
[Termination "boguszp won on time"]

1. e4 {[%clk 0:03:00.9]} 1... e6 {[%clk 0:02:59.2]} 2. d4 {[%clk 0:03:00.4]}
2... d5 {[%clk 0:02:58.6]} 3. Nd2 {[%clk 0:03:00.6]} 3... c5 {[%clk 0:02:58.7]}
4. exd5 {[%clk 0:02:59.3]} 4... Qxd5 {[%clk 0:02:58.1]} 5. Ngf3 {[%clk
0:02:59.9]} 5... cxd4 {[%clk 0:02:57.2]} 6. Bc4 {[%clk 0:03:00.5]} 6... Qd6
{[%clk 0:02:57.5]} 7. O-O {[%clk 0:03:00.9]} 7... Nf6 {[%clk 0:02:56.6]} 8. Nb3
{[%clk 0:03:01.4]} 8... Nc6 {[%clk 0:02:56.3]} 9. Nbxd4 {[%clk 0:03:01.6]} 9...
Nxd4 {[%clk 0:02:56.4]} 10. Nxd4 {[%clk 0:03:02.5]} 10... a6 {[%clk 0:02:55.4]}
11. Re1 {[%clk 0:02:49.5]} 11... Bd7 {[%clk 0:02:55.1]} 12. c3 {[%clk
0:02:41.4]} 12... Qc7 {[%clk 0:02:55.2]} 13. Qe2 {[%clk 0:02:36.6]} 13... Bd6
{[%clk 0:02:55.1]} 14. h3 {[%clk 0:02:15.8]} 14... O-O-O {[%clk 0:02:53.1]} 15.
b4 {[%clk 0:02:08.4]} 15... Ne4 {[%clk 0:02:43.2]} 16. Qxe4 {[%clk 0:01:54.1]}
16... Qxc4 {[%clk 0:02:41.6]} 17. Bf4 {[%clk 0:01:39.4]} 17... Qc7 {[%clk
0:02:22.2]} 18. Bxd6 {[%clk 0:01:34]} 18... Qxd6 {[%clk 0:02:21.6]} 19. Rad1
{[%clk 0:01:34.1]} 19... Qc7 {[%clk 0:02:17.3]} 20. Nb3 {[%clk 0:01:15.9]} 20...
Bc6 {[%clk 0:02:15.1]} 21. Qg4 {[%clk 0:01:13.8]} 21... Rxd1 {[%clk 0:01:58.9]}
22. Rxd1 {[%clk 0:01:14.7]} 22... g6 {[%clk 0:01:57.8]} 23. Nc5 {[%clk 0:00:53]}
23... Rd8 {[%clk 0:01:56.4]} 24. Rd4 {[%clk 0:00:53.7]} 24... h5 {[%clk
0:01:52.1]} 25. Qd1 {[%clk 0:00:52.1]} 25... Rxd4 {[%clk 0:01:49]} 26. Qxd4
{[%clk 0:00:53]} 26... Qd8 {[%clk 0:01:45.7]} 27. Qe5 {[%clk 0:00:20.5]} 27...
Qd5 {[%clk 0:01:42.3]} 28. Qg3 {[%clk 0:00:13.1]} 28... a5 {[%clk 0:01:37.6]}
29. a3 {[%clk 0:00:12.9]} 29... b6 {[%clk 0:01:34.1]} 30. Nd3 {[%clk 0:00:03.4]}
30... Bb5 {[%clk 0:01:30.4]} 31. Nf4 {[%clk 0:00:03.3]} 31... Qd1+ {[%clk
0:01:28.9]} 32. Kh2 {[%clk 0:00:03.8]} 32... Qd6 {[%clk 0:01:27.9]} 33. Qf3
{[%clk 0:00:03.8]} 33... Bc6 {[%clk 0:01:26.5]} 34. Qe3 {[%clk 0:00:03.7]} 34...
e5 {[%clk 0:01:25.3]} 35. Ne2 {[%clk 0:00:03.4]} 35... Kb7 {[%clk 0:01:24.1]}
36. f3 {[%clk 0:00:03.3]} 36... f5 {[%clk 0:01:22.1]} 37. g3 {[%clk 0:00:03.3]}
37... Qd5 {[%clk 0:01:20.9]} 38. bxa5 {[%clk 0:00:03.5]} 38... bxa5 {[%clk
0:01:19.4]} 39. Kg2 {[%clk 0:00:04]} 39... Ka6 {[%clk 0:01:14.8]} 40. c4 {[%clk
0:00:03.6]} 40... Qd6 {[%clk 0:01:12.9]} 41. c5 {[%clk 0:00:03.7]} 41... Qd5
{[%clk 0:01:12]} 42. Nc3 {[%clk 0:00:04.2]} 42... Qd4 {[%clk 0:01:09.6]} 43.
Qxd4 {[%clk 0:00:04.2]} 43... exd4 {[%clk 0:01:09.3]} 44. Nd1 {[%clk 0:00:04.3]}
44... Kb5 {[%clk 0:01:09.7]} 45. Kf2 {[%clk 0:00:04.8]} 45... Kxc5 {[%clk
0:01:10.1]} 46. Ke2 {[%clk 0:00:05.5]} 46... Kc4 {[%clk 0:01:10.5]} 47. g4
{[%clk 0:00:05.6]} 47... fxg4 {[%clk 0:01:09.2]} 48. fxg4 {[%clk 0:00:06.5]}
48... hxg4 {[%clk 0:01:08.9]} 49. hxg4 {[%clk 0:00:07.4]} 49... Bb5 {[%clk
0:01:07]} 50. Kd2 {[%clk 0:00:07.6]} 50... Kb3 {[%clk 0:01:07.1]} 51. Nf2 {[%clk
0:00:06.9]} 51... Kxa3 {[%clk 0:01:07.1]} 52. Ne4 {[%clk 0:00:07.1]} 52... Kb4
{[%clk 0:01:06.1]} 53. Nd6 {[%clk 0:00:07.4]} 53... Ba6 {[%clk 0:01:04.6]} 54.
Nf7 {[%clk 0:00:03.3]} 54... a4 {[%clk 0:01:01.4]} 55. Ne5 {[%clk 0:00:04.2]}
55... a3 {[%clk 0:01:01]} 56. Kc2 {[%clk 0:00:03.5]} 56... a2 {[%clk 0:00:58.8]}
57. Kb2 {[%clk 0:00:03.2]} 57... Bc4 {[%clk 0:00:58.9]} 58. Nxg6 {[%clk
0:00:02.8]} 58... d3 {[%clk 0:00:58.7]} 0-1

[Event "Late-Titled-Tuesday-Blitz-September-05-2023"]
[Site "Chess.com"]
[Date "2023.09.05"]
[Round "3"]
[White "Rodalquilar"]
[Black "Haykoooo0o"]
[Result "1-0"]
[WhiteElo "2787"]
[BlackElo "2490"]
[TimeControl "180+1"]
[EndTime "14:28:55 PDT"]
[Termination "Rodalquilar won by resignation"]

1. d4 {[%clk 0:03:00.9]} 1... d5 {[%clk 0:02:57.3]} 2. Nf3 {[%clk 0:03:01.1]}
2... Nf6 {[%clk 0:02:57.3]} 3. Bf4 {[%clk 0:03:01.3]} 3... c5 {[%clk 0:02:57.1]}
4. e3 {[%clk 0:03:01.5]} 4... cxd4 {[%clk 0:02:57]} 5. exd4 {[%clk 0:03:01.4]}
5... Bg4 {[%clk 0:02:56.8]} 6. Nbd2 {[%clk 0:02:54]} 6... Nc6 {[%clk 0:02:55.7]}
7. c3 {[%clk 0:02:54.2]} 7... e6 {[%clk 0:02:56.1]} 8. Qb3 {[%clk 0:02:53.8]}
8... Qd7 {[%clk 0:02:51.4]} 9. Ne5 {[%clk 0:02:52.2]} 9... Qc8 {[%clk
0:02:41.1]} 10. Nxg4 {[%clk 0:01:37.6]} 10... Nxg4 {[%clk 0:02:39.2]} 11. Bd3
{[%clk 0:01:37.9]} 11... Nf6 {[%clk 0:02:35.2]} 12. O-O {[%clk 0:01:37.7]} 12...
Be7 {[%clk 0:02:35.8]} 13. Rfe1 {[%clk 0:01:36.6]} 13... O-O {[%clk 0:02:35.8]}
14. Nf3 {[%clk 0:01:37]} 14... a6 {[%clk 0:02:32.9]} 15. a4 {[%clk 0:01:35.9]}
15... Qd7 {[%clk 0:02:20.4]} 16. Qc2 {[%clk 0:01:27]} 16... Bd6 {[%clk
0:02:17.3]} 17. Ne5 {[%clk 0:01:26]} 17... Qc7 {[%clk 0:02:16.4]} 18. Bg3 {[%clk
0:01:13.2]} 18... Rac8 {[%clk 0:02:10.3]} 19. Qe2 {[%clk 0:01:13]} 19... Bxe5
{[%clk 0:01:55.5]} 20. dxe5 {[%clk 0:01:11.6]} 20... Nd7 {[%clk 0:01:55.1]} 21.
f4 {[%clk 0:01:02.1]} 21... g6 {[%clk 0:01:51.3]} 22. h4 {[%clk 0:00:58.2]}
22... Ne7 {[%clk 0:01:38.6]} 23. h5 {[%clk 0:00:56.4]} 23... Nf5 {[%clk
0:01:37.5]} 24. Bf2 {[%clk 0:00:54.8]} 24... Nc5 {[%clk 0:01:25.1]} 25. Bc2
{[%clk 0:00:54.9]} 25... Ng7 {[%clk 0:01:16.2]} 26. g4 {[%clk 0:00:47]} 26...
Rfd8 {[%clk 0:01:09.3]} 27. h6 {[%clk 0:00:44.1]} 27... Ne8 {[%clk 0:01:08.9]}
28. Bd4 {[%clk 0:00:42.5]} 28... Ne4 {[%clk 0:01:03.7]} 29. Bxe4 {[%clk
0:00:41.9]} 29... dxe4 {[%clk 0:01:04.6]} 30. Qxe4 {[%clk 0:00:42.6]} 30... Qc6
{[%clk 0:01:00.1]} 31. a5 {[%clk 0:00:37.5]} 31... Qxe4 {[%clk 0:00:58.2]} 32.
Rxe4 {[%clk 0:00:38.4]} 32... Nc7 {[%clk 0:00:56.5]} 33. Rf1 {[%clk 0:00:38]}
33... Nd5 {[%clk 0:00:44.1]} 34. f5 {[%clk 0:00:37.5]} 34... Rc4 {[%clk
0:00:30.1]} 35. Re2 {[%clk 0:00:23.5]} 35... Rcc8 {[%clk 0:00:22.8]} 36. Ref2
{[%clk 0:00:22.3]} 36... Rf8 {[%clk 0:00:19.5]} 37. Rf3 {[%clk 0:00:20]} 37...
Ne7 {[%clk 0:00:18.9]} 38. fxe6 {[%clk 0:00:15.8]} 38... fxe6 {[%clk 0:00:18.9]}
39. Rf6 {[%clk 0:00:16.3]} 39... Rxf6 {[%clk 0:00:15.2]} 40. exf6 {[%clk
0:00:12.6]} 40... Nd5 {[%clk 0:00:14.2]} 41. f7+ {[%clk 0:00:12.9]} 41... Kf8
{[%clk 0:00:14.5]} 42. Bg7+ {[%clk 0:00:12.5]} 1-0

[Event "Late-Titled-Tuesday-Blitz-September-05-2023"]
[Site "Chess.com"]
[Date "2023.09.05"]
[Round "3"]
[White "GAO"]
[Black "zajka-molotok"]
[Result "0-1"]
[WhiteElo "2295"]
[BlackElo "2526"]
[TimeControl "180+1"]
[EndTime "14:28:55 PDT"]
[Termination "zajka-molotok won by checkmate"]

1. d4 {[%clk 0:02:56.8]} 1... Nf6 {[%clk 0:02:59.6]} 2. Nf3 {[%clk 0:02:55.1]}
2... e6 {[%clk 0:02:57.3]} 3. c4 {[%clk 0:02:51.7]} 3... c5 {[%clk 0:02:57]} 4.
g3 {[%clk 0:02:51.6]} 4... cxd4 {[%clk 0:02:56.8]} 5. Nxd4 {[%clk 0:02:52.5]}
5... d5 {[%clk 0:02:57.3]} 6. Nc3 {[%clk 0:02:47.2]} 6... e5 {[%clk 0:02:57.1]}
7. Ndb5 {[%clk 0:02:43.7]} 7... d4 {[%clk 0:02:57.3]} 8. Nb1 {[%clk 0:02:36.8]}
8... a6 {[%clk 0:02:56.8]} 9. N5a3 {[%clk 0:02:37]} 9... Nc6 {[%clk 0:02:51.9]}
10. Bg2 {[%clk 0:02:36]} 10... Bf5 {[%clk 0:02:45.3]} 11. O-O {[%clk 0:02:27.6]}
11... Bc5 {[%clk 0:02:45]} 12. Nc2 {[%clk 0:02:26.6]} 12... O-O {[%clk 0:02:42]}
13. a3 {[%clk 0:02:11.2]} 13... a5 {[%clk 0:02:40.8]} 14. Nd2 {[%clk 0:02:10.8]}
14... e4 {[%clk 0:02:33]} 15. Nb3 {[%clk 0:02:06.5]} 15... b6 {[%clk 0:02:30.4]}
16. Bg5 {[%clk 0:02:00.3]} 16... a4 {[%clk 0:02:26.3]} 17. Nd2 {[%clk 0:01:51]}
17... Re8 {[%clk 0:02:21.9]} 18. b4 {[%clk 0:01:34.2]} 18... axb3 {[%clk
0:02:19.9]} 19. Nxb3 {[%clk 0:01:34]} 19... h6 {[%clk 0:02:10.7]} 20. Bxf6
{[%clk 0:01:29.6]} 20... Qxf6 {[%clk 0:02:11.6]} 21. a4 {[%clk 0:01:28.4]} 21...
Rad8 {[%clk 0:01:54.5]} 22. Na3 {[%clk 0:01:26]} 22... d3 {[%clk 0:01:50.4]} 23.
exd3 {[%clk 0:01:25.6]} 23... Rxd3 {[%clk 0:01:46.6]} 24. Qe2 {[%clk 0:01:19]}
24... Rxb3 {[%clk 0:01:45.1]} 25. Nb5 {[%clk 0:01:17.2]} 25... Nd4 {[%clk
0:01:41.5]} 26. Qa2 {[%clk 0:01:11.7]} 26... Rd3 {[%clk 0:01:35.2]} 27. Nc7
{[%clk 0:00:57.2]} 27... e3 {[%clk 0:01:29.2]} 28. Nxe8 {[%clk 0:00:53.5]} 28...
Qe5 {[%clk 0:01:25.2]} 29. fxe3 {[%clk 0:00:46.2]} 29... Rxe3 {[%clk 0:01:10.8]}
30. Kh1 {[%clk 0:00:37.1]} 30... Qxe8 {[%clk 0:01:09.2]} 31. a5 {[%clk
0:00:36.4]} 31... Bd3 {[%clk 0:01:05.6]} 32. a6 {[%clk 0:00:28.5]} 32... Bxf1
{[%clk 0:01:04.3]} 33. Rxf1 {[%clk 0:00:29.4]} 33... Ra3 {[%clk 0:01:01]} 34.
Qd2 {[%clk 0:00:22.1]} 34... Rxa6 {[%clk 0:01:00]} 35. Bd5 {[%clk 0:00:22.6]}
35... Ra7 {[%clk 0:00:56.4]} 36. Qf4 {[%clk 0:00:21.8]} 36... Re7 {[%clk
0:00:54.5]} 37. Kg2 {[%clk 0:00:15.6]} 37... Ne6 {[%clk 0:00:52.1]} 38. Qg4
{[%clk 0:00:12.8]} 38... Nc7 {[%clk 0:00:49.2]} 39. Bf3 {[%clk 0:00:11.4]} 39...
Qd7 {[%clk 0:00:44.9]} 40. Qe4 {[%clk 0:00:10.4]} 40... Rxe4 {[%clk 0:00:44.4]}
41. Bxe4 {[%clk 0:00:10.7]} 41... Qd4 {[%clk 0:00:43.3]} 42. Bf3 {[%clk
0:00:09.7]} 42... Qxc4 {[%clk 0:00:42.3]} 43. Rd1 {[%clk 0:00:08.9]} 43... g6
{[%clk 0:00:40.4]} 44. Rd7 {[%clk 0:00:08.1]} 44... Ne6 {[%clk 0:00:39.4]} 45.
Bd5 {[%clk 0:00:08]} 45... Qe2+ {[%clk 0:00:39.2]} 46. Kh3 {[%clk 0:00:08.6]}
46... Ng5+ {[%clk 0:00:38.4]} 47. Kh4 {[%clk 0:00:08.6]} 47... Qxh2+ {[%clk
0:00:37.9]} 48. Kg4 {[%clk 0:00:09.5]} 48... Qh3+ {[%clk 0:00:37.6]} 49. Kf4
{[%clk 0:00:09.7]} 49... Qxd7 {[%clk 0:00:37.8]} 50. Bxf7+ {[%clk 0:00:07.4]}
50... Qxf7+ {[%clk 0:00:37.7]} 51. Kg4 {[%clk 0:00:06.6]} 51... Qf5+ {[%clk
0:00:37.2]} 52. Kh4 {[%clk 0:00:07.4]} 52... Qh3# {[%clk 0:00:37.8]} 0-1